bitfinex-derivatives/quotes_BNBF0:USTF0_20241230
["timestamp","ask_amount","ask_price","bid_price","bid_amount"]
[1735569522491,1.05773299,693.16,690.97,1.0642702]
[1735569522492,0.90380366,693.14,690.97,1.0642702]
[1735569522686,0.90380366,693.13,690.97,1.0642702]
[1735569522889,0.90380366,693.13,690.37,2.17288499]
[1735569522890,0.90380366,693.12,691.01,1.0642702]
[1735569523090,0.90380366,693.11,691.01,1.0642702]
[1735569523289,0.90380366,693.1,691.01,1.0642702]
[1735569523489,0.90380366,693.09,691.01,1.0642702]
[1735569523687,0.90380366,693.08,691.01,1.0642702]
[1735569523987,0.90380366,693.07,691.09,1.0642702]
[1735569524193,0.90380366,693.06,691.09,1.0642702]
[1735569524386,0.90380366,693.05,691.09,1.0642702]
[1735569524590,1.05773299,692.99,691.12,1.0642702]
[1735569524789,0.63747263,692.98,691.12,1.0642702]
[1735569525090,0.90364079,692.97,691.12,1.0642702]
[1735569525392,0.90364079,692.96,691.12,1.0642702]
[1735569525593,0.90364079,692.95,691.12,1.0642702]
[1735569525789,1.05773299,692.9,691.04,1.0642702]
[1735569526088,0.90364079,692.89,691.04,1.0642702]
[1735569526292,0.90364079,692.88,691.04,1.0642702]
[1735569526486,0.90364079,692.87,691.04,1.0642702]
[1735569526793,0.90364079,692.86,691.07,1.0642702]
[1735569526992,0.90364079,692.85,691.07,1.0642702]
[1735569527192,0.90364079,692.84,691.07,1.0642702]
[1735569527390,0.90364079,692.83,691.07,1.0642702]
[1735569527591,1.05773299,692.78,691.01,1.0642702]
[1735569527792,0.90364079,692.77,691.01,1.0642702]
[1735569527992,0.90364079,692.76,691.01,1.0642702]
[1735569528294,0.90364079,692.75,691.01,1.0642702]
[1735569528592,0.90364079,692.74,691.0,1.0642702]
[1735569528788,0.90364079,692.73,691.0,1.0642702]
[1735569528986,1.05773299,692.78,691.0,1.0642702]
[1735569528987,0.90364079,692.72,691.0,1.0642702]
[1735569529187,0.90364079,692.71,691.0,1.0642702]
[1735569529395,0.90364079,692.7,691.0,1.0642702]
[1735569529693,0.90364079,692.7,690.47,2.17288499]
[1735569529694,0.90364079,692.69,691.03,1.0642702]
[1735569529887,0.26616816,692.68,691.03,1.0642702]
[1735569530087,0.26616816,692.67,691.03,1.0642702]
[1735569530290,0.26617647,692.66,691.03,1.0642702]
[1735569530491,0.26617647,692.65,691.04,1.0642702]
[1735569530685,0.26617647,692.64,691.04,1.0642702]
[1735569530886,0.26617647,692.63,691.04,1.0642702]
[1735569531087,1.26927959,693.03,691.06,1.0642702]
[1735569531088,0.26617647,692.62,691.06,1.0642702]
[1735569531492,0.26617647,692.61,691.06,1.0642702]
[1735569531693,0.26617647,692.6,691.06,1.0642702]
[1735569531994,1.05773299,693.03,691.06,1.0642702]
[1735569531995,0.26617647,692.59,691.06,1.0642702]
[1735569532196,0.26615555,692.58,691.06,1.0642702]
[1735569532494,0.26615555,692.57,691.06,1.0642702]
[1735569532696,1.05773299,693.15,691.06,1.0642702]
[1735569532697,0.26615555,692.56,691.06,1.0642702]
[1735569532892,0.26615555,692.55,691.06,1.0642702]
[1735569533190,0.26615555,692.54,691.06,1.0642702]
[1735569533389,0.26615555,692.53,691.06,1.0642702]
[1735569533595,0.26615555,692.52,691.06,1.0642702]
[1735569533795,0.26615555,692.51,691.06,1.0642702]
[1735569533993,0.26615555,692.5,691.06,1.0642702]
[1735569534193,1.32388854,693.06,691.08,1.0642702]
[1735569534389,0.26615555,693.05,691.08,1.0642702]
[1735569534594,0.26615555,693.04,691.08,1.0642702]
[1735569534795,0.26615393,693.03,691.08,1.0642702]
[1735569535097,0.26615393,693.02,691.08,1.0642702]
[1735569535395,0.26615393,693.02,690.3,2.17288499]
[1735569535396,1.05773299,692.99,691.16,1.0642702]
[1735569535593,0.26615393,692.98,691.16,1.0642702]
[1735569535794,0.26615393,692.97,691.16,1.0642702]
[1735569535995,0.26615393,692.96,691.16,1.0642702]
[1735569536194,0.26615393,692.95,691.16,1.0642702]
[1735569536394,0.26615393,692.94,691.16,1.0642702]
[1735569536596,0.26615393,692.93,691.16,1.0642702]
[1735569536795,1.05773299,692.97,691.16,1.0642702]
[1735569536796,0.26615393,692.92,691.16,1.0642702]
[1735569536995,0.26615393,692.91,691.14,1.0642702]
[1735569537187,1.05773299,692.92,691.14,1.0642702]
[1735569537392,0.26615675,692.91,691.14,1.0642702]
[1735569537593,0.26615675,692.9,691.14,1.0642702]
[1735569537790,0.26615675,692.89,691.14,1.0642702]
[1735569537992,0.26619991,692.88,691.14,1.0642702]
[1735569538195,0.26619991,692.87,691.14,1.0642702]
[1735569538395,0.26619991,692.86,691.14,1.0642702]
[1735569538696,0.26619991,692.85,691.14,1.0642702]
[1735569538897,0.26619991,692.84,691.14,1.0642702]
[1735569539097,0.26619991,692.83,691.14,1.0642702]
[1735569539299,0.26619991,692.82,691.14,1.0642702]
[1735569539500,0.26619991,692.81,690.92,1.0642702]
[1735569539695,0.26619991,692.8,690.92,1.0642702]
[1735569540000,0.26620477,692.79,690.92,1.0642702]
[1735569540194,0.26620477,692.78,690.92,1.0642702]
[1735569540394,0.26620477,692.77,690.92,1.0642702]
[1735569540599,0.28870443,692.75,690.85,1.0642702]
[1735569540794,0.26620477,692.74,690.85,1.0642702]
[1735569540997,0.26620477,692.73,690.85,1.0642702]
[1735569541199,0.26620477,692.72,690.85,1.0642702]
[1735569541403,0.26620477,692.71,690.85,1.0642702]
[1735569541601,0.26616578,692.7,690.85,1.0642702]
[1735569541800,0.26616578,692.69,691.03,1.0642702]
[1735569541996,0.26616578,692.68,691.03,1.0642702]
[1735569542200,0.26616578,692.67,691.03,1.0642702]
[1735569542400,0.26616578,692.66,691.03,1.0642702]
[1735569542596,0.28870443,692.75,691.03,1.0642702]
[1735569542597,0.26616578,692.65,691.03,1.0642702]
[1735569542800,0.26616578,692.64,691.03,1.0642702]
[1735569543104,0.26616578,692.64,690.28,2.17288499]
[1735569543105,0.26616578,692.63,691.05,1.0642702]
[1735569543298,0.26616578,692.62,691.05,1.0642702]
[1735569543499,0.26616578,692.61,691.05,1.0642702]
[1735569543700,0.26616578,692.6,691.05,1.0642702]
[1735569543998,1.05773299,692.64,691.05,1.0642702]
[1735569544304,0.26621578,692.63,690.99,1.0642702]
[1735569544503,0.26621578,692.62,690.99,1.0642702]
[1735569544699,0.26619632,692.61,690.99,1.0642702]
[1735569545005,0.26619632,692.6,690.99,1.0642702]
[1735569545206,1.05773299,692.41,691.1,1.0642702]
[1735569545504,0.26619632,692.4,691.1,1.0642702]
[1735569546408,0.26619632,692.4,691.19,1.0642702]
[1735569546706,0.26608716,692.39,691.19,1.0642702]
[1735569546907,0.26608716,692.59,691.19,1.0642702]
[1735569547109,0.26608716,692.38,691.19,1.0642702]
[1735569547303,1.05773299,692.6,691.19,1.0642702]
[1735569547505,0.26599602,692.59,691.33,1.0642702]
[1735569547699,0.26599602,692.58,691.33,1.0642702]
[1735569547905,0.26599602,692.57,691.33,1.0642702]
[1735569548105,1.05773299,692.96,691.33,1.0642702]
[1735569548308,0.26595551,692.74,691.33,1.0642702]
[1735569548607,1.05773299,692.96,691.33,1.0642702]
[1735569548805,1.05773299,692.96,690.66,2.17288499]
[1735569548806,0.63712146,693.27,691.38,1.0642702]
[1735569549109,0.26592789,692.74,691.38,1.0642702]
[1735569550408,0.26592789,692.74,691.43,1.0642702]
[1735569550602,1.05773299,693.72,691.43,1.0642702]
[1735569551207,4.24114704,693.9,691.19,1.0642702]
[1735569551411,0.63750783,693.89,691.19,1.0642702]
[1735569551607,0.63776901,693.89,691.19,1.0642702]
[1735569552107,0.63776901,693.91,691.19,1.0642702]
[1735569552309,1.05773299,693.99,691.14,1.0642702]
[1735569552610,0.26595041,692.74,691.14,1.0642702]
[1735569553410,0.26595041,692.74,691.08,1.0642702]
[1735569554205,9.0597928,694.09,691.07,1.0642702]
[1735569554206,1.05773299,694.01,691.07,1.0642702]
[1735569554409,0.26595077,692.74,691.07,1.0642702]
[1735569555012,0.26595077,692.73,691.07,1.0642702]
[1735569555205,0.26595077,692.72,691.07,1.0642702]
[1735569555408,0.63753307,693.98,691.07,1.0642702]
[1735569555409,0.26595077,692.71,691.07,1.0642702]
[1735569555610,0.26595077,692.7,691.07,1.0642702]
[1735569555807,0.26595077,692.69,691.03,1.0642702]
[1735569556011,0.26595077,692.74,691.03,1.0642702]
[1735569556211,0.26595077,692.73,691.03,1.0642702]
[1735569556413,0.26595077,692.72,691.03,1.0642702]
[1735569556711,0.26595077,692.71,691.03,1.0642702]
[1735569556908,0.26595077,692.7,691.02,1.0642702]
[1735569557106,0.26595077,692.69,691.02,1.0642702]
[1735569557305,0.26595077,692.68,691.02,1.0642702]
[1735569557511,0.26595077,692.67,691.02,1.0642702]
[1735569557714,0.26595077,692.66,691.02,1.0642702]
[1735569557913,0.26595077,692.65,691.02,1.0642702]
[1735569558113,0.26595077,692.64,691.02,1.0642702]
[1735569558314,0.26595077,692.63,691.02,1.0642702]
[1735569558515,0.26595077,692.74,691.02,1.0642702]
[1735569558712,0.26595077,692.73,691.17,1.0642702]
[1735569559016,0.26595077,692.72,691.17,1.0642702]
[1735569559207,0.26595077,692.74,691.17,1.0642702]
[1735569559412,0.26595077,692.73,691.17,1.0642702]
[1735569559614,0.26592427,692.72,691.17,1.0642702]
[1735569559814,4.24116758,693.85,691.19,1.0642702]
[1735569559815,0.26592117,692.71,691.19,1.0642702]
[1735569560011,0.26592117,692.7,691.19,1.0642702]
[1735569560211,0.26592117,692.69,691.19,1.0642702]
[1735569560416,0.26592117,692.68,691.19,1.0642702]
[1735569560717,3.79872728,695.67,691.13,1.0642702]
[1735569560718,0.26593263,692.67,691.13,1.0642702]
[1735569560914,0.26593263,692.66,691.13,1.0642702]
[1735569561115,0.26593263,692.65,691.13,1.0642702]
[1735569561311,0.26593263,692.64,691.13,1.0642702]
[1735569561512,0.26593263,692.63,691.13,1.0642702]
[1735569561815,0.26596919,692.62,691.16,1.0642702]
[1735569562019,0.26596919,692.61,691.16,1.0642702]
[1735569562215,0.26596919,692.74,691.16,1.0642702]
[1735569562416,0.26596919,692.73,691.16,1.0642702]
[1735569562713,0.26596919,692.72,691.16,1.0642702]
[1735569562918,0.26596919,692.71,691.16,1.0642702]
[1735569563115,0.26596919,692.7,691.16,1.0642702]
[1735569563322,0.26596919,692.69,691.16,1.0642702]
[1735569563517,0.26596919,692.68,691.16,1.0642702]
[1735569563723,0.26596919,692.67,691.2,1.0642702]
[1735569564017,0.26596919,692.66,691.2,1.0642702]
[1735569564222,0.26596919,692.74,691.2,1.0642702]
[1735569564417,0.26596919,692.73,691.2,1.0642702]
[1735569564622,0.26596919,692.72,691.15,1.0642702]
[1735569564923,0.26596919,692.71,691.15,1.0642702]
[1735569565224,0.26596919,692.7,691.15,1.0642702]
[1735569565420,0.26596919,692.69,691.15,1.0642702]
[1735569565617,0.26596919,692.68,691.21,1.0642702]
[1735569565822,0.26596919,692.67,691.21,1.0642702]
[1735569566023,0.26596919,692.66,691.21,1.0642702]
[1735569566227,0.26596919,692.65,691.21,1.0642702]
[1735569566526,0.26596919,692.64,691.21,1.0642702]
[1735569566724,0.26593478,692.63,691.19,1.0642702]
[1735569567024,1.05773299,694.05,691.19,1.0642702]
[1735569567426,0.63717028,694.39,690.68,1.0642702]
[1735569567623,1.05773299,694.55,690.68,1.0642702]
[1735569568420,1.05773299,694.55,690.75,1.0642702]
[1735569568727,1.05773299,694.51,690.75,1.0642702]
[1735569569427,1.05773299,694.49,690.78,1.0642702]
[1735569570225,1.05773299,694.49,689.56,2.17288499]
[1735569570226,0.265913,692.74,690.81,1.0642702]
[1735569571429,0.265913,692.74,691.23,1.0642702]
[1735569571827,0.26593282,692.73,691.23,1.0642702]
[1735569572129,0.26593282,692.72,691.23,1.0642702]
[1735569572328,0.26593282,692.71,691.23,1.0642702]
[1735569572529,0.26593282,692.7,691.24,1.0642702]
[1735569572730,0.26593282,692.69,691.24,1.0642702]
[1735569572924,0.26593282,692.68,691.24,1.0642702]
[1735569573127,0.26593282,692.67,691.24,1.0642702]
[1735569573324,0.26593282,692.66,691.26,1.0642702]
[1735569573530,0.26593282,692.65,691.26,1.0642702]
[1735569573726,0.26593282,692.64,691.26,1.0642702]
[1735569574023,1.05773299,694.06,691.26,1.0642702]
[1735569574024,0.26593282,692.63,691.26,1.0642702]
[1735569574224,1.05773299,693.95,691.24,1.0642702]
[1735569574425,0.26598894,692.74,691.24,1.0642702]
[1735569574829,1.05773299,693.95,691.24,1.0642702]
[1735569575028,0.26600021,692.74,691.24,1.0642702]
[1735569575431,0.26600021,692.73,691.24,1.0642702]
[1735569575627,0.26600021,692.72,691.24,1.0642702]
[1735569575832,0.26600021,692.71,691.24,1.0642702]
[1735569576133,5.94298261,694.24,691.21,1.0642702]
[1735569576134,0.26600021,692.7,691.21,1.0642702]
[1735569576334,0.26600021,692.74,691.21,1.0642702]
[1735569576632,0.26600021,692.73,691.21,1.0642702]
[1735569576933,0.26604136,692.72,691.21,1.0642702]
[1735569577132,0.26604136,692.71,691.21,1.0642702]
[1735569577333,0.26604136,692.7,691.11,1.0642702]
[1735569577526,1.05773299,693.62,691.11,1.0642702]
[1735569577527,0.26604136,692.69,691.11,1.0642702]
[1735569577733,0.26604136,692.68,691.11,1.0642702]
[1735569578032,0.26604136,692.67,691.11,1.0642702]
[1735569578228,0.26604136,692.66,691.11,1.0642702]
[1735569578431,1.05773299,693.62,691.11,1.0642702]
[1735569578629,0.26602245,692.74,691.17,1.0642702]
[1735569579235,0.26601768,692.73,691.17,1.0642702]
[1735569579434,0.26601768,692.74,691.32,1.0642702]
[1735569579635,0.26601768,692.73,691.32,1.0642702]
[1735569579827,0.26601768,692.72,691.32,1.0642702]
[1735569580030,0.26601768,692.71,691.32,1.0642702]
[1735569580228,0.26601768,692.7,691.32,1.0642702]
[1735569580429,0.26601768,692.69,691.32,1.0642702]
[1735569580628,0.26601768,692.68,690.93,1.0642702]
[1735569580831,0.26601768,692.67,690.93,1.0642702]
[1735569581134,0.26601768,692.66,690.93,1.0642702]
[1735569581336,0.26601768,692.65,690.93,1.0642702]
[1735569581529,0.26601768,692.64,690.89,1.0642702]
[1735569581834,0.26612296,692.63,690.89,1.0642702]
[1735569582039,0.26612296,692.62,690.89,1.0642702]
[1735569582227,0.26612296,692.74,690.89,1.0642702]
[1735569582429,0.26612296,692.74,689.78,2.17288499]
[1735569582430,0.26612296,692.73,690.9,1.0642702]
[1735569582735,0.26612296,692.72,690.9,1.0642702]
[1735569582934,0.26612296,692.71,690.9,1.0642702]
[1735569583134,0.26612296,692.7,690.9,1.0642702]
[1735569583435,0.26612296,692.69,690.9,1.0642702]
[1735569583735,0.63692054,693.59,690.95,1.0642702]
[1735569583736,0.26612296,692.68,690.95,1.0642702]
[1735569583930,0.26612296,692.67,690.95,1.0642702]
[1735569584136,0.26612296,692.66,690.95,1.0642702]
[1735569584329,0.26605031,692.65,690.95,1.0642702]
[1735569584535,8.37733675,693.99,688.44,2.32245236]
[1735569584536,0.26605031,692.64,691.32,1.0642702]
[1735569584835,0.26605031,692.63,691.32,1.0642702]
[1735569585032,0.26605031,692.62,691.32,1.0642702]
[1735569585235,1.05773299,693.27,691.32,1.0642702]
[1735569585236,0.26605031,692.61,691.32,1.0642702]
[1735569585436,0.26605031,692.6,691.32,1.0642702]
[1735569585635,0.26605031,692.59,691.42,1.0642702]
[1735569585835,1.05773299,693.17,691.42,1.0642702]
[1735569585836,0.26605031,692.58,691.42,1.0642702]
[1735569586038,0.26605031,692.57,691.42,1.0642702]
[1735569586330,0.26605031,692.56,691.42,1.0642702]
[1735569586536,0.26605031,692.74,691.42,1.0642702]
[1735569586737,0.26605031,692.73,691.4,1.0642702]
[1735569587038,0.26603504,692.72,691.4,1.0642702]
[1735569587234,0.26603504,692.71,691.4,1.0642702]
[1735569587434,0.26603504,692.71,690.87,2.17288499]
[1735569587435,0.26603504,692.7,691.37,1.0642702]
[1735569587640,0.26603504,692.69,691.37,1.0642702]
[1735569587838,0.26603504,692.68,691.37,1.0642702]
[1735569588038,0.26603504,692.67,691.37,1.0642702]
[1735569588234,0.26603504,692.66,691.37,1.0642702]
[1735569588439,0.26603504,692.65,691.27,1.0642702]
[1735569588631,0.26603504,692.64,691.27,1.0642702]
[1735569588834,0.26603504,692.63,691.27,1.0642702]
[1735569589033,0.26603504,692.62,691.27,1.0642702]
[1735569589235,1.05773299,693.38,691.27,1.0642702]
[1735569589437,0.26609628,692.61,691.11,1.0642702]
[1735569589637,0.26609628,692.6,691.11,1.0642702]
[1735569589838,0.26609628,692.74,691.11,1.0642702]
[1735569590038,1.05773299,693.16,691.11,1.0642702]
[1735569590039,0.26611561,692.73,691.11,1.0642702]
[1735569590242,0.26611561,692.72,691.11,1.0642702]
[1735569590539,0.26611561,692.71,691.11,1.0642702]
[1735569590741,0.26611561,692.7,691.06,1.0642702]
[1735569590938,0.26611561,692.69,691.06,1.0642702]
[1735569591140,0.26611561,692.68,691.06,1.0642702]
[1735569591340,0.26611561,692.67,691.06,1.0642702]
[1735569591642,2.44072439,693.43,691.06,1.0642702]
[1735569591643,0.26612727,692.66,691.06,1.0642702]
[1735569591941,0.26612727,692.65,691.06,1.0642702]
[1735569592140,0.26612727,692.64,691.06,1.0642702]
[1735569592342,0.26612727,692.74,691.05,1.0642702]
[1735569592536,0.26612727,692.73,691.05,1.0642702]
[1735569592741,0.26612727,692.72,691.05,1.0642702]
[1735569593045,0.26612727,692.71,691.04,1.0642702]
[1735569593243,0.26612727,692.7,691.04,1.0642702]
[1735569593442,0.26612727,692.69,691.04,1.0642702]
[1735569593642,0.26612727,692.68,691.04,1.0642702]
[1735569593841,0.26612727,692.67,691.04,1.0642702]
[1735569594040,0.26612727,692.66,691.04,1.0642702]
[1735569594242,0.28875028,692.64,691.04,1.0642702]
[1735569594544,0.28875028,692.64,690.17,2.17288499]
[1735569594545,0.26606954,692.63,691.07,1.0642702]
[1735569595344,0.26606954,692.63,691.02,1.0642702]
[1735569596344,0.26606954,692.62,691.02,1.0642702]
[1735569596543,0.26606954,692.61,691.06,1.0642702]
[1735569596843,0.28875028,692.64,691.06,1.0642702]
[1735569597143,0.26609746,692.63,691.06,1.0642702]
[1735569597647,0.26607799,692.62,691.06,1.0642702]
[1735569597835,0.26607799,692.63,691.06,1.0642702]
[1735569598149,0.26607799,692.62,691.07,1.0642702]
[1735569598344,0.26607799,692.61,691.07,1.0642702]
[1735569598645,0.26607799,692.6,691.07,1.0642702]
[1735569598842,0.26607799,692.59,691.07,1.0642702]
[1735569599037,0.26607799,692.58,691.05,1.0642702]
[1735569599242,0.26607799,692.57,691.05,1.0642702]
[1735569599441,0.28875028,692.64,691.05,1.0642702]
[1735569599643,0.26607736,692.63,691.05,1.0642702]
[1735569599839,0.26607736,692.63,691.13,1.0642702]
[1735569600241,0.28875028,692.64,691.13,1.0642702]
[1735569601044,0.28875028,692.64,690.7,1.0642702]
[1735569602247,0.28875028,692.64,690.76,1.0642702]
[1735569602851,0.26609581,692.63,690.76,1.0642702]
[1735569603051,0.26609581,692.63,690.75,1.0642702]
[1735569603852,0.26612284,692.62,690.75,1.0642702]
[1735569604152,0.26612284,692.63,690.85,1.0642702]
[1735569604451,0.26612284,692.62,690.85,1.0642702]
[1735569604651,0.28875028,692.64,690.85,1.0642702]
[1735569604652,0.26612284,692.63,690.85,1.0642702]
[1735569604846,0.26612284,692.62,690.85,1.0642702]
[1735569605053,0.26612284,692.61,690.89,1.0642702]
[1735569605352,0.26612284,692.6,690.89,1.0642702]
[1735569605651,0.26612284,692.59,690.89,1.0642702]
[1735569605852,0.26612284,692.58,690.78,1.0642702]
[1735569606052,0.26612284,692.57,690.78,1.0642702]
[1735569606253,0.28875028,692.64,690.78,1.0642702]
[1735569606454,0.26613456,692.63,690.78,1.0642702]
[1735569606654,0.26613456,692.62,690.87,1.0642702]
[1735569606853,0.26613456,692.61,690.87,1.0642702]
[1735569607148,0.26613456,692.6,690.87,1.0642702]
[1735569607348,0.26613456,692.59,690.87,1.0642702]
[1735569607659,0.26613456,692.59,690.58,1.0642702]
[1735569607660,0.26613456,692.58,691.13,1.0642702]
[1735569607953,0.28875028,692.64,691.13,1.0642702]
[1735569607954,0.26613456,692.57,691.13,1.0642702]
[1735569608150,0.26613456,692.56,691.13,1.0642702]
[1735569608351,0.26613456,692.55,691.2,1.0642702]
[1735569608545,0.26613456,692.54,691.2,1.0642702]
[1735569608746,0.26609223,692.53,691.2,1.0642702]
[1735569608951,0.26609223,692.52,691.2,1.0642702]
[1735569609151,0.26609223,692.51,691.2,1.0642702]
[1735569609452,0.28875028,692.64,691.2,1.0642702]
[1735569609453,0.26609223,692.5,691.2,1.0642702]
[1735569609652,0.26609223,692.49,691.2,1.0642702]
[1735569609849,0.26609223,692.48,691.23,1.0642702]
[1735569610153,0.26609223,692.47,691.23,1.0642702]
[1735569610452,0.26609223,692.46,691.23,1.0642702]
[1735569610650,0.26609223,692.45,691.23,1.0642702]
[1735569610849,0.26609223,692.44,691.35,1.0642702]
[1735569611153,0.26609223,692.43,691.35,1.0642702]
[1735569611354,0.26607111,692.42,691.35,1.0642702]
[1735569611654,0.26607111,692.41,691.35,1.0642702]
[1735569611851,0.28875028,692.64,691.35,1.0642702]
[1735569612051,0.26605344,692.63,691.35,1.0642702]
[1735569612256,0.26605344,692.63,691.37,1.0642702]
[1735569612454,0.26605344,692.62,691.37,1.0642702]
[1735569612647,0.26605344,692.61,691.37,1.0642702]
[1735569612853,0.26605344,692.6,691.37,1.0642702]
[1735569613155,0.26605344,692.59,691.2,1.0642702]
[1735569613348,0.26605344,692.58,691.2,1.0642702]
[1735569613550,0.26605344,692.57,691.2,1.0642702]
[1735569613750,0.26605344,692.56,691.2,1.0642702]
[1735569614055,0.26611287,692.55,691.12,1.0642702]
[1735569614256,0.26611287,692.63,691.12,1.0642702]
[1735569614449,0.26611287,692.62,691.12,1.0642702]
[1735569614754,0.28875028,692.64,691.12,1.0642702]
[1735569615355,0.28875028,692.64,691.32,1.0642702]
[1735569616554,0.26603224,692.63,691.34,1.0642702]
[1735569617457,0.28876279,692.61,691.35,1.0642702]
[1735569617752,0.26603224,692.6,691.35,1.0642702]
[1735569617957,0.2887753,692.58,691.35,1.0642702]
[1735569618150,0.26603224,692.57,691.35,1.0642702]
[1735569618656,0.26603224,692.57,690.59,2.17288499]
[1735569618657,0.26603224,692.57,691.39,1.0642702]
[1735569619155,0.28878781,692.55,691.39,1.0642702]
[1735569619357,0.26600313,692.54,691.51,1.0642702]
[1735569619656,0.28878781,692.55,691.51,1.0642702]
[1735569619855,0.26601089,692.54,691.51,1.0642702]
[1735569620058,0.28880032,692.52,691.51,1.0642702]
[1735569620257,0.26601089,692.51,691.51,1.0642702]
[1735569620858,0.26601089,692.51,690.97,2.17288499]
[1735569620859,0.26601089,692.51,691.52,1.0642702]
[1735569621661,0.26601089,692.51,691.17,1.0642702]
[1735569622660,0.26601089,692.51,691.15,1.0642702]
[1735569623555,0.26601089,692.51,691.19,1.0642702]
[1735569624559,0.26601089,692.51,691.16,1.0642702]
[1735569625661,0.26601089,692.51,691.23,1.0642702]
[1735569626659,0.26601089,692.51,691.27,1.0642702]
[1735569626856,0.26601089,692.51,691.46,1.0642702]
[1735569627263,0.28880032,692.52,691.46,1.0642702]
[1735569628158,0.28880032,692.52,683.13,8.63112245]
[1735569628359,0.28880032,692.52,689.01,3.05535859]
[1735569628664,0.28880032,692.52,689.02,5.77103554]
[1735569628865,0.28880032,692.52,689.03,3.05535859]
[1735569629160,0.28880032,692.52,691.42,1.08017322]
[1735569630163,0.28880032,692.52,691.15,1.08017322]
[1735569631066,0.28880032,692.52,691.24,1.08017322]
[1735569631668,0.26597557,692.51,691.24,1.08017322]
[1735569631968,0.26597557,692.51,690.76,2.71741442]
[1735569631969,0.26597213,692.5,691.47,1.08017322]
[1735569632164,0.26597213,692.51,691.47,1.08017322]
[1735569632359,0.28880032,692.52,691.47,1.08017322]
[1735569632568,0.26597137,692.51,691.47,1.08017322]
[1735569632966,0.26597137,692.51,690.85,2.20535366]
[1735569632967,0.26597137,692.51,691.49,1.08017322]
[1735569633768,0.26597137,692.51,691.51,1.08017322]
[1735569634171,0.28880032,692.52,691.51,1.08017322]
[1735569634570,0.28880032,692.52,691.63,1.08017322]
[1735569636065,0.28880032,692.52,691.5,1.08017322]
[1735569637466,0.28880032,692.52,690.75,2.20535366]
[1735569637467,0.28880032,692.52,691.4,1.08017322]
[1735569638364,0.28880032,692.52,691.5,1.08017322]
[1735569639472,0.28880032,692.52,691.48,1.08017322]
[1735569640973,0.28880032,692.52,691.55,1.08017322]
[1735569641877,0.28880032,692.52,691.56,1.08017322]
[1735569643076,0.28880032,692.52,691.57,1.08017322]
[1735569644076,0.28880032,692.52,691.42,1.08017322]
[1735569644980,0.28880032,692.52,691.51,1.08017322]
[1735569645779,0.28880032,692.52,691.64,1.08017322]
[1735569646875,0.28880032,692.52,691.66,1.08017322]
[1735569647973,0.28880032,692.52,691.2,1.29620786]
[1735569647974,0.28880032,692.52,691.73,1.08017322]
[1735569648175,1.0787859,694.04,691.73,1.08017322]
[1735569648480,0.2882135,693.93,691.73,1.08017322]
[1735569648675,0.26575135,693.92,691.73,1.08017322]
[1735569648883,0.26575135,693.91,691.73,1.08017322]
[1735569649081,0.26575135,693.9,691.79,1.08017322]
[1735569649278,0.26575135,693.89,691.79,1.08017322]
[1735569649481,0.26575135,693.88,691.79,1.08017322]
[1735569649684,0.2882135,693.93,691.79,1.08017322]
[1735569649976,0.26572746,693.92,691.85,1.08017322]
[1735569650181,0.26572746,693.91,691.85,1.08017322]
[1735569650481,0.26573502,693.9,691.85,1.08017322]
[1735569650686,0.26573502,693.89,691.85,1.08017322]
[1735569650977,0.26573502,693.89,691.28,1.29620786]
[1735569650978,0.26573502,693.88,691.78,1.08017322]
[1735569651176,0.26573502,693.87,691.78,1.08017322]
[1735569651380,0.26573502,693.86,691.78,1.08017322]
[1735569651682,0.26573502,693.85,691.78,1.08017322]
[1735569651875,0.26573502,693.84,691.78,1.08017322]
[1735569652080,0.26573502,693.84,691.08,2.20535366]
[1735569652081,0.26573502,693.83,691.77,1.08017322]
[1735569652279,0.26573502,693.82,691.77,1.08017322]
[1735569652481,0.26573502,693.81,691.77,1.08017322]
[1735569652681,0.26573502,693.8,691.77,1.08017322]
[1735569652982,0.26573502,693.79,691.82,1.08017322]
[1735569653178,0.26573502,693.78,691.82,1.08017322]
[1735569653483,0.26573502,693.77,691.82,1.08017322]
[1735569653683,0.26573502,693.76,691.82,1.08017322]
[1735569653884,0.26573502,693.75,691.81,1.08017322]
[1735569654083,0.26573502,693.74,691.81,1.08017322]
[1735569654286,0.26573502,693.73,691.81,1.08017322]
[1735569654587,0.26573502,693.72,691.81,1.08017322]
[1735569654786,0.26573502,693.71,691.81,1.08017322]
[1735569655087,0.26574284,693.7,691.8,1.08017322]
[1735569655283,0.26574284,693.69,691.8,1.08017322]
[1735569655483,0.26574284,693.68,691.8,1.08017322]
[1735569655784,0.26574284,693.67,691.8,1.08017322]
[1735569655980,0.26574284,693.66,691.8,1.08017322]
[1735569656184,0.26574284,693.65,691.75,1.08017322]
[1735569656384,0.2882135,693.93,691.75,1.08017322]
[1735569656385,0.26574284,693.64,691.75,1.08017322]
[1735569656580,0.26574284,693.63,691.75,1.08017322]
[1735569657288,0.26574284,693.62,691.75,1.08017322]
[1735569657481,0.26574284,693.62,691.55,1.08017322]
[1735569657482,0.2882135,693.93,691.8,1.08017322]
[1735569657681,0.26569601,693.92,691.8,1.08017322]
[1735569657886,0.26569601,693.91,691.8,1.08017322]
[1735569658086,0.2882135,693.93,691.8,1.08017322]
[1735569658287,0.26568415,693.92,691.8,1.08017322]
[1735569658486,0.26568415,693.91,691.8,1.08017322]